[Event "Titled Tuesday Blitz November 29 Early 2022"]
[White "Sovetbekova, Nurai"]
[Black "sabkeIXO"]
[WhiteFideId "13801910"]
[WhiteElo "1925"]
[BlackElo "2495"]
[Result "1-0"]
[Round "09"]
[TimeControl "180+1"]
[Date "2022.11.30"]
[WhiteClock "0:00:06"]
[BlackClock "0:00:21"]

1. d4 {[%clk 0:02:56]}  Nf6 {[%clk 0:02:59]} 2. c4 {[%clk 0:02:55]}  g6 {[%clk 0:02:59]} 3. Nc3 {[%clk 0:02:53]}  Bg7 {[%clk 0:02:59]} 4. e4 {[%clk 0:02:51]}  d6 {[%clk 0:03:00]} 5. Be2 {[%clk 0:02:45]}  O-O {[%clk 0:03:00]} 6. Nf3 {[%clk 0:02:45]}  Bg4 {[%clk 0:02:59]} 7. Ng1 {[%clk 0:02:43]}  Bxe2 {[%clk 0:02:58]} 8. Ngxe2 {[%clk 0:02:43]}  Nfd7 {[%clk 0:02:57]} 9. Be3 {[%clk 0:02:42]}  c5 {[%clk 0:02:57]} 10. Qc2 {[%clk 0:02:38]}  Nc6 {[%clk 0:02:56]} 11. Rd1 {[%clk 0:02:26]}  cxd4 {[%clk 0:02:50]} 12. Nxd4 {[%clk 0:02:25]}  Nxd4 {[%clk 0:02:50]} 13. Bxd4 {[%clk 0:02:26]}  Bxd4 {[%clk 0:02:50]} 14. Rxd4 {[%clk 0:02:26]}  Qb6 {[%clk 0:02:48]} 15. Rd2 {[%clk 0:02:19]}  Nf6 {[%clk 0:02:47]} 16. O-O {[%clk 0:02:19]}  Rac8 {[%clk 0:02:46]} 17. Qd3 {[%clk 0:02:16]}  a6 {[%clk 0:02:22]} 18. b3 {[%clk 0:02:13]}  Qc5 {[%clk 0:02:19]} 19. Qf3 {[%clk 0:02:05]}  b5 {[%clk 0:02:12]} 20. Nd5 {[%clk 0:02:01]}  Nxd5 {[%clk 0:02:12]} 21. Rxd5 {[%clk 0:02:02]}  Qc6 {[%clk 0:02:12]} 22. cxb5 {[%clk 0:01:57]}  axb5 {[%clk 0:02:12]} 23. Qe2 {[%clk 0:01:52]}  b4 {[%clk 0:02:08]} 24. Rd4 {[%clk 0:01:46]}  Qb6 {[%clk 0:02:01]} 25. Rfd1 {[%clk 0:01:41]}  Rc3 {[%clk 0:01:50]} 26. h3 {[%clk 0:01:32]}  Rfc8 {[%clk 0:01:50]} 27. e5 {[%clk 0:01:27]}  Rc2 {[%clk 0:01:31]} 28. R4d2 {[%clk 0:01:26]}  Rxd2 {[%clk 0:01:24]} 29. Rxd2 {[%clk 0:01:26]}  dxe5 {[%clk 0:01:23]} 30. Qxe5 {[%clk 0:01:20]}  Rc1+ {[%clk 0:01:06]} 31. Kh2 {[%clk 0:01:19]}  Qc7 {[%clk 0:01:06]} 32. Qxc7 {[%clk 0:01:12]}  Rxc7 {[%clk 0:01:07]} 33. Rd8+ {[%clk 0:01:13]}  Kg7 {[%clk 0:01:07]} 34. Rb8 {[%clk 0:01:14]}  Rc2 {[%clk 0:01:06]} 35. Rxb4 {[%clk 0:01:13]}  Rxa2 {[%clk 0:01:06]} 36. Kg3 {[%clk 0:01:14]}  h5 {[%clk 0:01:06]} 37. h4 {[%clk 0:01:09]}  e5 {[%clk 0:01:06]} 38. Rb8 {[%clk 0:01:02]}  f5 {[%clk 0:01:05]} 39. b4 {[%clk 0:00:59]}  Ra3+ {[%clk 0:01:05]} 40. Kh2 {[%clk 0:00:56]}  Ra2 {[%clk 0:01:05]} 41. f3 {[%clk 0:00:37]}  e4 {[%clk 0:01:02]} 42. fxe4 {[%clk 0:00:37]}  fxe4 {[%clk 0:01:02]} 43. Re8 {[%clk 0:00:32]}  Re2 {[%clk 0:00:59]} 44. Kg1 {[%clk 0:00:20]}  Kf7 {[%clk 0:00:58]} 45. Kf1 {[%clk 0:00:16]}  Rb2 {[%clk 0:00:46]} 46. Rxe4 {[%clk 0:00:16]}  Kf6 {[%clk 0:00:46]} 47. Kg1 {[%clk 0:00:14]}  Kf5 {[%clk 0:00:46]} 48. Rc4 {[%clk 0:00:14]}  Ke5 {[%clk 0:00:44]} 49. Kh2 {[%clk 0:00:14]}  Kd5 {[%clk 0:00:45]} 50. Rf4 {[%clk 0:00:14]}  Ke5 {[%clk 0:00:43]} 51. Rc4 {[%clk 0:00:13]}  Kd5 {[%clk 0:00:44]} 52. Rc5+ {[%clk 0:00:12]}  Ke4 {[%clk 0:00:37]} 53. Rg5 {[%clk 0:00:12]}  Rxb4 {[%clk 0:00:36]} 54. Rxg6 {[%clk 0:00:12]}  Kf4 {[%clk 0:00:36]} 55. g3+ {[%clk 0:00:11]}  Kf3 {[%clk 0:00:35]} 56. Rf6+ {[%clk 0:00:12]}  Kg4 {[%clk 0:00:35]} 57. Rg6+ {[%clk 0:00:12]}  Kf3 {[%clk 0:00:35]} 58. Rg5 {[%clk 0:00:12]}  Rb1 {[%clk 0:00:23]} 59. Rxh5 {[%clk 0:00:09]}  Kg4 {[%clk 0:00:24]} 60. Rg5+ {[%clk 0:00:10]}  Kf3 {[%clk 0:00:24]} 61. Rf5+ {[%clk 0:00:10]}  Kg4 {[%clk 0:00:24]} 62. Rf4+ {[%clk 0:00:10]}  Kh5 {[%clk 0:00:25]} 63. Kh3 {[%clk 0:00:10]}  Rh1+ {[%clk 0:00:25]} 64. Kg2 {[%clk 0:00:10]}  Rb1 {[%clk 0:00:26]} 65. Rf5+ {[%clk 0:00:10]}  Kg6 {[%clk 0:00:25]} 66. Rg5+ {[%clk 0:00:11]}  Kh6 {[%clk 0:00:26]} 67. Kh3 {[%clk 0:00:11]}  Rb3 {[%clk 0:00:26]} 68. Ra5 {[%clk 0:00:11]}  Rc3 {[%clk 0:00:26]} 69. Ra6+ {[%clk 0:00:11]}  Kh5 {[%clk 0:00:26]} 70. Ra5+ {[%clk 0:00:11]}  Kh6 {[%clk 0:00:27]} 71. Rf5 {[%clk 0:00:09]}  Kg6 {[%clk 0:00:26]} 72. Rf4 {[%clk 0:00:09]}  Kh6 {[%clk 0:00:26]} 73. Kg4 {[%clk 0:00:09]}  Ra3 {[%clk 0:00:26]} 74. Rd4 {[%clk 0:00:09]}  Rb3 {[%clk 0:00:26]} 75. Rd6+ {[%clk 0:00:09]}  Kg7 {[%clk 0:00:26]} 76. Kf4 {[%clk 0:00:09]}  Kh7 {[%clk 0:00:25]} 77. g4 {[%clk 0:00:08]}  Rb5 {[%clk 0:00:25]} 78. h5 {[%clk 0:00:08]}  Kg7 {[%clk 0:00:26]} 79. g5 {[%clk 0:00:08]}  Kh7 {[%clk 0:00:26]} 80. Rd7+ {[%clk 0:00:08]}  Kg8 {[%clk 0:00:26]} 81. h6 {[%clk 0:00:06]}  Kh8 {[%clk 0:00:26]} 82. g6 {[%clk 0:00:06]}  Rb4+ {[%clk 0:00:27]} 83. Kg5 {[%clk 0:00:06]}  Rb5+ {[%clk 0:00:27]} 84. Kf6 {[%clk 0:00:06]}  Rb6+ {[%clk 0:00:27]} 85. Kf7 {[%clk 0:00:05]}  Rb8 {[%clk 0:00:28]} 86. Rd6 {[%clk 0:00:02]}  Rb7+ {[%clk 0:00:26]} 87. Kf6 {[%clk 0:00:02]}  Rb8 {[%clk 0:00:27]} 88. Re6 {[%clk 0:00:03]}  Rf8+ {[%clk 0:00:26]} 89. Kg5 {[%clk 0:00:03]}  Rb8 {[%clk 0:00:26]} 90. Re7 {[%clk 0:00:03]}  Rb5+ {[%clk 0:00:24]} 91. Kf6 {[%clk 0:00:04]}  Rb6+ {[%clk 0:00:22]} 92. Re6 {[%clk 0:00:04]}  Rb8 {[%clk 0:00:22]} 93. Re7 {[%clk 0:00:04]}  Rb6+ {[%clk 0:00:22]} 94. Kf7 {[%clk 0:00:05]}  Rb7 {[%clk 0:00:23]} 95. Kf8 {[%clk 0:00:04]}  Rd7 {[%clk 0:00:20]} 96. Re8 {[%clk 0:00:03]}  Rf7+ {[%clk 0:00:19]} 97. gxf7 {[%clk 0:00:03]}  Kh7 {[%clk 0:00:20]} 98. Ke7 {[%clk 0:00:03]}  Kxh6 {[%clk 0:00:20]} 99. f8=Q+ {[%clk 0:00:04]}  Kh7 {[%clk 0:00:21]} 100. Qf7+ {[%clk 0:00:04]}  Kh6 {[%clk 0:00:21]} 101. Rh8+ {[%clk 0:00:05]}  Kg5 {[%clk 0:00:21]} 102. Qf6+ {[%clk 0:00:05]}  Kg4 {[%clk 0:00:21]} 103. Rg8+ {[%clk 0:00:06]}  Kh5 {[%clk 0:00:21]} 104. Qh8# {[%clk 0:00:06]} 1-0


[Site "https://www.chess.com"]

[Event "Titled Tuesday Blitz November 29 Early 2022"]
[White "Stijve, Theo"]
[Black "Deev, Andrei"]
[WhiteFideId "1331132"]
[BlackFideId "4102690"]
[WhiteElo "2256"]
[BlackElo "2305"]
[Result "1-0"]
[Round "09"]
[TimeControl "180+1"]
[Date "2022.11.30"]
[WhiteClock "0:00:08"]
[BlackClock "0:00:04"]

1. e4 {[%clk 0:02:55]}  d6 {[%clk 0:03:00]} 2. d4 {[%clk 0:02:54]}  Nf6 {[%clk 0:03:00]} 3. Nc3 {[%clk 0:02:54]}  c6 {[%clk 0:03:01]} 4. Nf3 {[%clk 0:02:53]}  Bg4 {[%clk 0:03:00]} 5. Be2 {[%clk 0:02:51]}  e6 {[%clk 0:02:59]} 6. a4 {[%clk 0:02:51]}  d5 {[%clk 0:02:58]} 7. e5 {[%clk 0:02:50]}  Nfd7 {[%clk 0:02:59]} 8. O-O {[%clk 0:02:47]}  c5 {[%clk 0:02:57]} 9. Be3 {[%clk 0:02:27]}  Bxf3 {[%clk 0:02:48]} 10. Bxf3 {[%clk 0:02:26]}  Nc6 {[%clk 0:02:42]} 11. Re1 {[%clk 0:02:15]}  cxd4 {[%clk 0:02:36]} 12. Bxd4 {[%clk 0:02:15]}  Nxd4 {[%clk 0:02:28]} 13. Qxd4 {[%clk 0:02:16]}  Bc5 {[%clk 0:02:22]} 14. Qg4 {[%clk 0:01:32]}  O-O {[%clk 0:02:21]} 15. Rad1 {[%clk 0:01:23]}  Qb6 {[%clk 0:01:45]} 16. Re2 {[%clk 0:00:59]}  Rad8 {[%clk 0:01:39]} 17. b3 {[%clk 0:00:50]}  Qb4 {[%clk 0:01:24]} 18. Qxb4 {[%clk 0:00:37]}  Bxb4 {[%clk 0:01:24]} 19. Nb5 {[%clk 0:00:38]}  a6 {[%clk 0:01:19]} 20. c3 {[%clk 0:00:26]}  axb5 {[%clk 0:00:40]} 21. cxb4 {[%clk 0:00:25]}  bxa4 {[%clk 0:00:38]} 22. bxa4 {[%clk 0:00:26]}  Nb6 {[%clk 0:00:36]} 23. a5 {[%clk 0:00:23]}  Nc4 {[%clk 0:00:35]} 24. Ree1 {[%clk 0:00:20]}  b6 {[%clk 0:00:30]} 25. a6 {[%clk 0:00:19]}  b5 {[%clk 0:00:29]} 26. Be2 {[%clk 0:00:17]}  Rb8 {[%clk 0:00:17]} 27. Ra1 {[%clk 0:00:17]}  Rb6 {[%clk 0:00:13]} 28. a7 {[%clk 0:00:17]}  Ra8 {[%clk 0:00:13]} 29. f4 {[%clk 0:00:17]}  Rb7 {[%clk 0:00:12]} 30. Bxc4 {[%clk 0:00:11]}  bxc4 {[%clk 0:00:12]} 31. Kf2 {[%clk 0:00:10]}  g6 {[%clk 0:00:11]} 32. Ke3 {[%clk 0:00:09]}  Rbxa7 {[%clk 0:00:11]} 33. Rxa7 {[%clk 0:00:09]}  Rxa7 {[%clk 0:00:12]} 34. Kd4 {[%clk 0:00:09]}  Rc7 {[%clk 0:00:04]} 35. Kc3 {[%clk 0:00:08]} 1-0


[Site "https://www.chess.com"]

[Event "Titled Tuesday Blitz November 29 Early 2022"]
[White "Tarasova, Viktoriya"]
[Black "Shuvalov, Evgenij"]
[WhiteFideId "4175840"]
[BlackFideId "4187237"]
[WhiteElo "2182"]
[BlackElo "2049"]
[Result "0-1"]
[Round "09"]
[TimeControl "180+1"]
[Date "2022.11.30"]
[WhiteClock "0:00:56"]
[BlackClock "0:02:07"]

1. d4 {[%clk 0:03:00]}  Nf6 {[%clk 0:02:56]} 2. c4 {[%clk 0:03:00]}  c5 {[%clk 0:02:55]} 3. d5 {[%clk 0:02:59]}  b5 {[%clk 0:02:55]} 4. cxb5 {[%clk 0:02:59]}  a6 {[%clk 0:02:56]} 5. bxa6 {[%clk 0:02:58]}  Bxa6 {[%clk 0:02:57]} 6. Nc3 {[%clk 0:02:58]}  g6 {[%clk 0:02:56]} 7. Nf3 {[%clk 0:02:58]}  d6 {[%clk 0:02:56]} 8. e4 {[%clk 0:02:58]}  Bxf1 {[%clk 0:02:56]} 9. Kxf1 {[%clk 0:02:58]}  Bg7 {[%clk 0:02:57]} 10. g3 {[%clk 0:02:59]}  O-O {[%clk 0:02:57]} 11. Kg2 {[%clk 0:02:59]}  Nbd7 {[%clk 0:02:57]} 12. a4 {[%clk 0:02:59]}  Qb6 {[%clk 0:02:57]} 13. Re1 {[%clk 0:02:57]}  Rfb8 {[%clk 0:02:56]} 14. Qc2 {[%clk 0:02:57]}  Qb3 {[%clk 0:02:49]} 15. Qxb3 {[%clk 0:02:48]}  Rxb3 {[%clk 0:02:50]} 16. Nd2 {[%clk 0:02:30]}  Rb4 {[%clk 0:02:49]} 17. a5 {[%clk 0:02:22]}  Ne5 {[%clk 0:02:35]} 18. Ra2 {[%clk 0:01:01]}  Nd3 {[%clk 0:02:28]} 19. Rd1 {[%clk 0:01:01]}  Ng4 {[%clk 0:02:09]} 20. f3 {[%clk 0:01:00]}  Ne3+ {[%clk 0:02:08]} 21. Kg1 {[%clk 0:00:56]}  Nxd1 {[%clk 0:02:07]} 22. Nxd1 {[%clk 0:00:56]}  Nxc1 {[%clk 0:02:07]} 0-1


[Site "https://www.chess.com"]

[Event "Titled Tuesday Blitz November 29 Early 2022"]
[White "Tarnowska, Aleksandra"]
[Black "Sadovsky, Artem"]
[WhiteFideId "1180967"]
[BlackFideId "4155840"]
[WhiteElo "1776"]
[BlackElo "2312"]
[Result "0-1"]
[Round "09"]
[TimeControl "180+1"]
[Date "2022.11.30"]
[WhiteClock "0:00:04"]
[BlackClock "0:01:27"]

1. e4 {[%clk 0:03:00]}  g6 {[%clk 0:02:59]} 2. d4 {[%clk 0:02:58]}  Bg7 {[%clk 0:03:00]} 3. Be3 {[%clk 0:02:53]}  d6 {[%clk 0:02:58]} 4. Nc3 {[%clk 0:02:39]}  e5 {[%clk 0:02:59]} 5. Nge2 {[%clk 0:02:36]}  Nc6 {[%clk 0:02:48]} 6. Qd2 {[%clk 0:02:15]}  f5 {[%clk 0:02:34]} 7. f3 {[%clk 0:01:49]}  Nf6 {[%clk 0:02:30]} 8. O-O-O {[%clk 0:01:42]}  fxe4 {[%clk 0:02:29]} 9. Nxe4 {[%clk 0:01:35]}  Nxe4 {[%clk 0:02:27]} 10. fxe4 {[%clk 0:01:36]}  Bg4 {[%clk 0:02:28]} 11. d5 {[%clk 0:01:23]}  Nd4 {[%clk 0:02:08]} 12. Nxd4 {[%clk 0:00:43]}  exd4 {[%clk 0:02:09]} 13. Bxd4 {[%clk 0:00:43]}  Bxd4 {[%clk 0:01:42]} 14. Qxd4 {[%clk 0:00:43]}  Qg5+ {[%clk 0:01:43]} 15. Rd2 {[%clk 0:00:35]}  O-O {[%clk 0:01:42]} 16. Bc4 {[%clk 0:00:16]}  Rf7 {[%clk 0:01:34]} 17. Kb1 {[%clk 0:00:16]}  Raf8 {[%clk 0:01:27]} 18. h3 {[%clk 0:00:15]}  Bd7 {[%clk 0:01:26]} 19. g4 {[%clk 0:00:15]}  b6 {[%clk 0:01:23]} 20. a3 {[%clk 0:00:14]}  Re7 {[%clk 0:01:21]} 21. Re1 {[%clk 0:00:14]}  Qh4 {[%clk 0:01:19]} 22. Qd3 {[%clk 0:00:12]}  Qxe1+ {[%clk 0:01:18]} 23. Rd1 {[%clk 0:00:12]}  Qxe4 {[%clk 0:01:19]} 24. Qc3 {[%clk 0:00:11]}  Qe5 {[%clk 0:01:19]} 25. Qb3 {[%clk 0:00:11]}  Rf4 {[%clk 0:01:19]} 26. Ka2 {[%clk 0:00:10]}  a5 {[%clk 0:01:18]} 27. Bd3 {[%clk 0:00:09]}  a4 {[%clk 0:01:18]} 28. Qc3 {[%clk 0:00:09]}  Qxc3 {[%clk 0:01:18]} 29. bxc3 {[%clk 0:00:09]}  Re5 {[%clk 0:01:19]} 30. c4 {[%clk 0:00:08]}  Kg7 {[%clk 0:01:20]} 31. Kb2 {[%clk 0:00:08]}  g5 {[%clk 0:01:20]} 32. Kc3 {[%clk 0:00:08]}  h6 {[%clk 0:01:21]} 33. Rh1 {[%clk 0:00:05]}  Re3 {[%clk 0:01:22]} 34. h4 {[%clk 0:00:05]}  Rxg4 {[%clk 0:01:21]} 35. hxg5 {[%clk 0:00:05]}  Rxg5 {[%clk 0:01:22]} 36. Rf1 {[%clk 0:00:05]}  Bf5 {[%clk 0:01:22]} 37. Kd4 {[%clk 0:00:03]}  Bxd3 {[%clk 0:01:23]} 38. cxd3 {[%clk 0:00:03]}  Rgg3 {[%clk 0:01:21]} 39. Rd1 {[%clk 0:00:03]}  Rxd3+ {[%clk 0:01:22]} 40. Rxd3 {[%clk 0:00:03]}  Rxd3+ {[%clk 0:01:23]} 41. Kxd3 {[%clk 0:00:04]}  Kf6 {[%clk 0:01:23]} 42. Ke4 {[%clk 0:00:04]}  h5 {[%clk 0:01:24]} 43. Kf4 {[%clk 0:00:04]}  h4 {[%clk 0:01:25]} 44. Kg4 {[%clk 0:00:04]}  Ke5 {[%clk 0:01:26]} 45. Kxh4 {[%clk 0:00:04]}  Kd4 {[%clk 0:01:27]} 46. Kg4 {[%clk 0:00:04]}  Kxc4 {[%clk 0:01:27]} 0-1


[Site "https://www.chess.com"]

[Event "Titled Tuesday Blitz November 29 Early 2022"]
[White "Tokhirjonova, Gulrukhbegim"]
[Black "Ljukin, Sergei"]
[WhiteFideId "14203626"]
[BlackFideId "14102200"]
[WhiteElo "2236"]
[BlackElo "2312"]
[Result "0-1"]
[Round "09"]
[TimeControl "180+1"]
[Date "2022.11.30"]
[WhiteClock "0:00:34"]
[BlackClock "0:00:33"]

1. e4 {[%clk 0:03:00]}  e6 {[%clk 0:03:00]} 2. d4 {[%clk 0:03:00]}  d5 {[%clk 0:03:00]} 3. e5 {[%clk 0:02:59]}  c5 {[%clk 0:03:00]} 4. c3 {[%clk 0:02:57]}  Nc6 {[%clk 0:03:00]} 5. Nf3 {[%clk 0:02:57]}  Qb6 {[%clk 0:03:00]} 6. a3 {[%clk 0:02:55]}  f6 {[%clk 0:02:58]} 7. b4 {[%clk 0:02:50]}  c4 {[%clk 0:02:57]} 8. Be2 {[%clk 0:02:49]}  a5 {[%clk 0:02:57]} 9. Bb2 {[%clk 0:02:21]}  axb4 {[%clk 0:02:18]} 10. axb4 {[%clk 0:02:16]}  Rxa1 {[%clk 0:02:17]} 11. Bxa1 {[%clk 0:02:17]}  fxe5 {[%clk 0:02:14]} 12. dxe5 {[%clk 0:02:14]}  g6 {[%clk 0:02:09]} 13. O-O {[%clk 0:02:12]}  Bg7 {[%clk 0:02:10]} 14. Re1 {[%clk 0:02:10]}  Nh6 {[%clk 0:02:08]} 15. Nbd2 {[%clk 0:02:08]}  Nf7 {[%clk 0:02:03]} 16. Bb2 {[%clk 0:01:58]}  O-O {[%clk 0:01:58]} 17. Bc1 {[%clk 0:01:56]}  Nfxe5 {[%clk 0:01:56]} 18. Nxe5 {[%clk 0:01:55]}  Qxf2+ {[%clk 0:01:45]} 19. Kh1 {[%clk 0:01:55]}  Nxe5 {[%clk 0:01:45]} 20. Nf3 {[%clk 0:01:52]}  Ng4 {[%clk 0:01:36]} 21. h3 {[%clk 0:01:30]}  Ne3 {[%clk 0:01:32]} 22. Bxe3 {[%clk 0:01:29]}  Qxe3 {[%clk 0:01:32]} 23. Bxc4 {[%clk 0:01:29]}  Qxc3 {[%clk 0:01:32]} 24. Bf1 {[%clk 0:01:23]}  Qxb4 {[%clk 0:01:24]} 25. Ng5 {[%clk 0:01:23]}  Qd6 {[%clk 0:01:19]} 26. Ne4 {[%clk 0:01:15]}  Qf4 {[%clk 0:01:13]} 27. Nd2 {[%clk 0:01:00]}  e5 {[%clk 0:01:00]} 28. Nf3 {[%clk 0:00:59]}  Be6 {[%clk 0:00:59]} 29. Bb5 {[%clk 0:00:54]}  e4 {[%clk 0:00:56]} 30. Nh2 {[%clk 0:00:49]}  d4 {[%clk 0:00:51]} 31. Rf1 {[%clk 0:00:46]}  Qe5 {[%clk 0:00:46]} 32. Rxf8+ {[%clk 0:00:46]}  Bxf8 {[%clk 0:00:46]} 33. Qf1 {[%clk 0:00:42]}  Bd6 {[%clk 0:00:41]} 34. Qg1 {[%clk 0:00:36]}  Qxb5 {[%clk 0:00:33]} 35. Qxd4 {[%clk 0:00:34]}  Qe5 {[%clk 0:00:33]} 0-1


[Site "https://www.chess.com"]

[Event "Titled Tuesday Blitz November 29 Early 2022"]
[White "Vakhlamov, Igor L."]
[Black "Zatonskih, Anna"]
[WhiteFideId "24126748"]
[BlackFideId "14101572"]
[WhiteElo "2401"]
[BlackElo "2362"]
[Result "1-0"]
[Round "09"]
[TimeControl "180+1"]
[Date "2022.11.30"]
[WhiteClock "0:00:03"]
[BlackClock "0:00:05"]

1. e4 {[%clk 0:03:00]}  d5 {[%clk 0:02:59]} 2. exd5 {[%clk 0:03:00]}  Qxd5 {[%clk 0:03:00]} 3. Nc3 {[%clk 0:03:01]}  Qd6 {[%clk 0:03:00]} 4. d4 {[%clk 0:03:00]}  c6 {[%clk 0:02:58]} 5. Bc4 {[%clk 0:02:59]}  Nf6 {[%clk 0:02:58]} 6. Nf3 {[%clk 0:02:57]}  Bg4 {[%clk 0:02:57]} 7. O-O {[%clk 0:02:57]}  Bxf3 {[%clk 0:02:52]} 8. Qxf3 {[%clk 0:02:57]}  Qxd4 {[%clk 0:02:52]} 9. Bb3 {[%clk 0:02:54]}  Nbd7 {[%clk 0:02:32]} 10. Bf4 {[%clk 0:02:47]}  e6 {[%clk 0:02:24]} 11. Rad1 {[%clk 0:02:46]}  Qb4 {[%clk 0:02:15]} 12. a3 {[%clk 0:02:32]}  Qa5 {[%clk 0:02:15]} 13. Ne4 {[%clk 0:02:32]}  Nxe4 {[%clk 0:02:09]} 14. Qxe4 {[%clk 0:02:33]}  Nf6 {[%clk 0:02:04]} 15. Qe2 {[%clk 0:02:20]}  Be7 {[%clk 0:01:59]} 16. Bxe6 {[%clk 0:02:04]}  fxe6 {[%clk 0:01:49]} 17. Qxe6 {[%clk 0:02:05]}  Rf8 {[%clk 0:01:18]} 18. Rfe1 {[%clk 0:01:47]}  Rf7 {[%clk 0:01:08]} 19. Bd6 {[%clk 0:01:27]}  Ng8 {[%clk 0:00:42]} 20. Re5 {[%clk 0:00:07]}  Qb6 {[%clk 0:00:17]} 21. Bc5 {[%clk 0:00:07]}  Qc7 {[%clk 0:00:16]} 22. Rde1 {[%clk 0:00:06]}  Qd7 {[%clk 0:00:14]} 23. Qb3 {[%clk 0:00:05]}  O-O-O {[%clk 0:00:12]} 24. Bxa7 {[%clk 0:00:05]}  Bd6 {[%clk 0:00:10]} 25. R5e2 {[%clk 0:00:04]}  Nf6 {[%clk 0:00:09]} 26. Bb6 {[%clk 0:00:03]}  Bc7 {[%clk 0:00:09]} 27. Bc5 {[%clk 0:00:04]}  Ng4 {[%clk 0:00:09]} 28. h3 {[%clk 0:00:03]}  Nf6 {[%clk 0:00:07]} 29. Qa4 {[%clk 0:00:03]}  Nd5 {[%clk 0:00:06]} 30. Qa8+ {[%clk 0:00:03]}  Bb8 {[%clk 0:00:06]} 31. Qa4 {[%clk 0:00:04]}  Nf4 {[%clk 0:00:05]} 32. Re4 {[%clk 0:00:04]}  Qd5 {[%clk 0:00:05]} 33. Bb6 {[%clk 0:00:03]} 1-0


[Site "https://www.chess.com"]

[Event "Titled Tuesday Blitz November 29 Early 2022"]
[White "Vargas, Mauricio"]
[Black "Broca Jimenez, Fernando"]
[WhiteFideId "4404572"]
[BlackFideId "5104742"]
[WhiteElo "2025"]
[BlackElo "2062"]
[Result "0-1"]
[Round "09"]
[TimeControl "180+1"]
[Date "2022.11.30"]
[WhiteClock "0:00:01"]
[BlackClock "0:00:06"]

1. e4 {[%clk 0:02:55]}  c5 {[%clk 0:02:56]} 2. Nc3 {[%clk 0:02:53]}  g6 {[%clk 0:02:54]} 3. f4 {[%clk 0:02:53]}  Bg7 {[%clk 0:02:54]} 4. Nf3 {[%clk 0:02:54]}  Nc6 {[%clk 0:02:53]} 5. Bb5 {[%clk 0:02:54]}  Nd4 {[%clk 0:02:53]} 6. Bf1 {[%clk 0:02:54]}  e6 {[%clk 0:02:51]} 7. d3 {[%clk 0:02:52]}  Ne7 {[%clk 0:02:50]} 8. g3 {[%clk 0:02:52]}  O-O {[%clk 0:02:50]} 9. Bg2 {[%clk 0:02:52]}  d5 {[%clk 0:02:50]} 10. e5 {[%clk 0:02:52]}  a6 {[%clk 0:02:46]} 11. O-O {[%clk 0:02:51]}  Ndc6 {[%clk 0:02:37]} 12. Ne2 {[%clk 0:02:50]}  b5 {[%clk 0:02:34]} 13. c3 {[%clk 0:02:50]}  Bb7 {[%clk 0:02:33]} 14. Qe1 {[%clk 0:02:49]}  Rc8 {[%clk 0:02:17]} 15. g4 {[%clk 0:02:49]}  f5 {[%clk 0:02:10]} 16. exf6 {[%clk 0:02:47]}  Bxf6 {[%clk 0:02:09]} 17. Qg3 {[%clk 0:02:35]}  Qd6 {[%clk 0:01:51]} 18. Qh3 {[%clk 0:02:33]}  Bg7 {[%clk 0:01:48]} 19. Ng5 {[%clk 0:02:30]}  h6 {[%clk 0:01:47]} 20. Nf3 {[%clk 0:02:23]}  e5 {[%clk 0:01:09]} 21. f5 {[%clk 0:02:20]}  gxf5 {[%clk 0:01:02]} 22. gxf5 {[%clk 0:02:13]}  Nxf5 {[%clk 0:01:02]} 23. Nh4 {[%clk 0:02:05]}  Nxh4 {[%clk 0:00:45]} 24. Qxh4 {[%clk 0:02:00]}  Ne7 {[%clk 0:00:38]} 25. Bd2 {[%clk 0:01:55]}  Rxf1+ {[%clk 0:00:24]} 26. Rxf1 {[%clk 0:01:54]}  Rf8 {[%clk 0:00:25]} 27. Qg3 {[%clk 0:01:40]}  Rxf1+ {[%clk 0:00:21]} 28. Bxf1 {[%clk 0:01:39]}  Qg6 {[%clk 0:00:20]} 29. Bh3 {[%clk 0:01:23]}  Qxg3+ {[%clk 0:00:18]} 30. Nxg3 {[%clk 0:01:19]}  Kf7 {[%clk 0:00:17]} 31. Bg4 {[%clk 0:01:17]}  Bc8 {[%clk 0:00:13]} 32. Bh5+ {[%clk 0:01:14]}  Kf6 {[%clk 0:00:10]} 33. Be3 {[%clk 0:01:10]}  Nf5 {[%clk 0:00:10]} 34. Bxc5 {[%clk 0:01:04]}  Nxg3 {[%clk 0:00:10]} 35. hxg3 {[%clk 0:01:04]}  Bf5 {[%clk 0:00:09]} 36. d4 {[%clk 0:00:59]}  Ke6 {[%clk 0:00:08]} 37. g4 {[%clk 0:00:53]}  Bb1 {[%clk 0:00:07]} 38. a3 {[%clk 0:00:51]}  exd4 {[%clk 0:00:07]} 39. cxd4 {[%clk 0:00:50]}  Bd3 {[%clk 0:00:06]} 40. Kf2 {[%clk 0:00:48]}  a5 {[%clk 0:00:05]} 41. Ke3 {[%clk 0:00:48]}  Bc4 {[%clk 0:00:04]} 42. Bg6 {[%clk 0:00:44]}  Bf6 {[%clk 0:00:04]} 43. Kf2 {[%clk 0:00:40]}  Bg5 {[%clk 0:00:05]} 44. Bc2 {[%clk 0:00:39]}  a4 {[%clk 0:00:05]} 45. Bf5+ {[%clk 0:00:37]}  Kf6 {[%clk 0:00:05]} 46. Bb6 {[%clk 0:00:34]}  Bc1 {[%clk 0:00:05]} 47. Bd8+ {[%clk 0:00:33]}  Kg7 {[%clk 0:00:05]} 48. Bc7 {[%clk 0:00:26]}  Bxb2 {[%clk 0:00:05]} 49. Be5+ {[%clk 0:00:26]}  Kf7 {[%clk 0:00:05]} 50. Ke3 {[%clk 0:00:22]}  Bxa3 {[%clk 0:00:05]} 51. Bf4 {[%clk 0:00:22]}  Kg7 {[%clk 0:00:05]} 52. Be5+ {[%clk 0:00:22]}  Kf7 {[%clk 0:00:05]} 53. Bf4 {[%clk 0:00:22]}  Bc1+ {[%clk 0:00:05]} 54. Kf3 {[%clk 0:00:21]}  Bxf4 {[%clk 0:00:06]} 55. Kxf4 {[%clk 0:00:21]}  a3 {[%clk 0:00:06]} 56. Bb1 {[%clk 0:00:21]}  a2 {[%clk 0:00:07]} 57. Bf5 {[%clk 0:00:18]}  a1=Q {[%clk 0:00:07]} 58. Ke5 {[%clk 0:00:16]}  Qe1+ {[%clk 0:00:07]} 59. Kd6 {[%clk 0:00:16]}  b4 {[%clk 0:00:06]} 60. Kc5 {[%clk 0:00:15]}  b3 {[%clk 0:00:07]} 61. Kc6 {[%clk 0:00:12]}  b2 {[%clk 0:00:07]} 62. Kc5 {[%clk 0:00:12]}  Qc3 {[%clk 0:00:07]} 63. Kd6 {[%clk 0:00:11]}  Bd3 {[%clk 0:00:08]} 64. Kxd5 {[%clk 0:00:11]}  Bxf5 {[%clk 0:00:07]} 65. gxf5 {[%clk 0:00:10]}  b1=Q {[%clk 0:00:08]} 66. Ke5 {[%clk 0:00:09]}  Qb5+ {[%clk 0:00:07]} 67. Kf4 {[%clk 0:00:08]}  Qd2+ {[%clk 0:00:07]} 68. Ke4 {[%clk 0:00:07]}  Qbd3+ {[%clk 0:00:05]} 69. Kd5 {[%clk 0:00:01]}  Qxd4+ {[%clk 0:00:06]} 70. Kc6 {[%clk 0:00:01]}  Q2c3+ {[%clk 0:00:06]} 0-1


[Site "https://www.chess.com"]